[Event "Titled Tuesday Blitz March 15 Early 2022"]
[White "Perez Gormaz, Matias"]
[Black "Eggleston, Thomas A"]
[WhiteFideId "3406342"]
[BlackFideId "412139"]
[WhiteElo "2327"]
[BlackElo "2174"]
[Result "1-0"]
[Round "01"]
[TimeControl "180+1"]
[Date "2022.03.15"]
[WhiteClock "0:00:08"]
[BlackClock "0:00:01"]

1. e4 {[%clk 0:02:56]}  e6 {[%clk 0:03:00]} 2. d4 {[%clk 0:02:55]}  d5 {[%clk 0:02:59]} 3. Nc3 {[%clk 0:02:56]}  Nc6 {[%clk 0:02:58]} 4. Nf3 {[%clk 0:02:55]}  Nf6 {[%clk 0:02:57]} 5. Bd3 {[%clk 0:02:55]}  Bb4 {[%clk 0:02:56]} 6. O-O {[%clk 0:02:54]}  Bxc3 {[%clk 0:02:55]} 7. exd5 {[%clk 0:02:52]}  Nxd4 {[%clk 0:02:31]} 8. bxc3 {[%clk 0:02:36]}  Nxf3+ {[%clk 0:02:30]} 9. Qxf3 {[%clk 0:02:35]}  Qxd5 {[%clk 0:02:23]} 10. Qg3 {[%clk 0:02:35]}  O-O {[%clk 0:02:12]} 11. Qxc7 {[%clk 0:02:34]}  Bd7 {[%clk 0:02:07]} 12. c4 {[%clk 0:02:34]}  Qh5 {[%clk 0:02:04]} 13. Bb2 {[%clk 0:02:21]}  Bc6 {[%clk 0:02:00]} 14. Rae1 {[%clk 0:02:06]}  Qg4 {[%clk 0:01:43]} 15. f3 {[%clk 0:02:04]}  Qh4 {[%clk 0:01:34]} 16. Re5 {[%clk 0:01:37]}  Rac8 {[%clk 0:01:25]} 17. Qa5 {[%clk 0:01:36]}  Rfd8 {[%clk 0:01:09]} 18. Qxa7 {[%clk 0:01:26]}  Nd7 {[%clk 0:01:03]} 19. Ra5 {[%clk 0:01:13]}  Qf4 {[%clk 0:00:49]} 20. Qf2 {[%clk 0:01:01]}  e5 {[%clk 0:00:47]} 21. Re1 {[%clk 0:00:59]}  f6 {[%clk 0:00:45]} 22. Bc1 {[%clk 0:00:52]}  Qd4 {[%clk 0:00:45]} 23. Qxd4 {[%clk 0:00:52]}  exd4 {[%clk 0:00:45]} 24. Bb2 {[%clk 0:00:46]}  Ne5 {[%clk 0:00:44]} 25. Bf5 {[%clk 0:00:35]}  Rc7 {[%clk 0:00:42]} 26. c5 {[%clk 0:00:28]}  Kh8 {[%clk 0:00:36]} 27. Be6 {[%clk 0:00:27]}  Re7 {[%clk 0:00:31]} 28. Bb3 {[%clk 0:00:19]}  Nxf3+ {[%clk 0:00:31]} 29. gxf3 {[%clk 0:00:20]}  Rxe1+ {[%clk 0:00:30]} 30. Kf2 {[%clk 0:00:20]}  Rde8 {[%clk 0:00:30]} 31. Bxd4 {[%clk 0:00:19]}  R1e2+ {[%clk 0:00:29]} 32. Kg3 {[%clk 0:00:19]}  Re1 {[%clk 0:00:26]} 33. Bc4 {[%clk 0:00:10]}  Rd1 {[%clk 0:00:26]} 34. Bd3 {[%clk 0:00:10]}  h6 {[%clk 0:00:23]} 35. h4 {[%clk 0:00:10]}  g5 {[%clk 0:00:19]} 36. Bxf6+ {[%clk 0:00:09]}  Kg8 {[%clk 0:00:19]} 37. hxg5 {[%clk 0:00:10]}  hxg5 {[%clk 0:00:19]} 38. Bd4 {[%clk 0:00:09]}  Re7 {[%clk 0:00:18]} 39. Ra3 {[%clk 0:00:08]}  Bd5 {[%clk 0:00:15]} 40. Ra8+ {[%clk 0:00:08]}  Kf7 {[%clk 0:00:14]} 41. Rh8 {[%clk 0:00:06]}  Ke6 {[%clk 0:00:13]} 42. Rh6+ {[%clk 0:00:06]}  Kd7 {[%clk 0:00:13]} 43. Rd6+ {[%clk 0:00:06]}  Kc7 {[%clk 0:00:13]} 44. Rxd5 {[%clk 0:00:07]}  Rd2 {[%clk 0:00:11]} 45. Rxg5 {[%clk 0:00:07]}  Rd1 {[%clk 0:00:10]} 46. Kf2 {[%clk 0:00:05]}  Ree1 {[%clk 0:00:09]} 47. Rg7+ {[%clk 0:00:05]}  Kc6 {[%clk 0:00:09]} 48. Rg6+ {[%clk 0:00:05]}  Kc7 {[%clk 0:00:10]} 49. Rb6 {[%clk 0:00:04]}  Rh1 {[%clk 0:00:09]} 50. Kg2 {[%clk 0:00:04]}  Rhe1 {[%clk 0:00:07]} 51. Kf2 {[%clk 0:00:04]}  Rh1 {[%clk 0:00:07]} 52. Be5+ {[%clk 0:00:04]}  Kc8 {[%clk 0:00:07]} 53. Bf5+ {[%clk 0:00:05]}  Kd8 {[%clk 0:00:07]} 54. Rd6+ {[%clk 0:00:05]}  Ke7 {[%clk 0:00:06]} 55. Rxd1 {[%clk 0:00:05]}  Rxd1 {[%clk 0:00:06]} 56. Be4 {[%clk 0:00:05]}  Rb1 {[%clk 0:00:05]} 57. Bd6+ {[%clk 0:00:05]}  Kd7 {[%clk 0:00:05]} 58. Ke3 {[%clk 0:00:06]}  Rb2 {[%clk 0:00:04]} 59. a4 {[%clk 0:00:06]}  Ra2 {[%clk 0:00:04]} 60. f4 {[%clk 0:00:06]}  Rxa4 {[%clk 0:00:04]} 61. Bxb7 {[%clk 0:00:07]}  Rc4 {[%clk 0:00:04]} 62. Be4 {[%clk 0:00:07]}  Rc3+ {[%clk 0:00:04]} 63. Bd3 {[%clk 0:00:07]}  Ra3 {[%clk 0:00:03]} 64. f5 {[%clk 0:00:07]}  Kc6 {[%clk 0:00:02]} 65. Kd4 {[%clk 0:00:07]}  Ra4+ {[%clk 0:00:02]} 66. c4 {[%clk 0:00:08]}  Ra8 {[%clk 0:00:01]} 67. Be4+ {[%clk 0:00:08]} 1-0


[Site "https://www.chess.com"]

[Event "Titled Tuesday Blitz March 15 Early 2022"]
[White "Petrova, Irina"]
[Black "Kosteniuk, Alexandra"]
[WhiteFideId "14124122"]
[BlackFideId "4128125"]
[WhiteElo "1993"]
[BlackElo "2469"]
[Result "0-1"]
[Round "01"]
[TimeControl "180+1"]
[Date "2022.03.15"]
[WhiteClock "0:00:07"]
[BlackClock "0:00:48"]

1. e4 {[%clk 0:03:00]}  c6 {[%clk 0:02:54]} 2. d4 {[%clk 0:02:59]}  d5 {[%clk 0:02:53]} 3. e5 {[%clk 0:02:59]}  c5 {[%clk 0:02:53]} 4. dxc5 {[%clk 0:02:57]}  e6 {[%clk 0:02:53]} 5. a3 {[%clk 0:02:57]}  Bxc5 {[%clk 0:02:52]} 6. Qg4 {[%clk 0:02:51]}  Ne7 {[%clk 0:02:51]} 7. b4 {[%clk 0:02:44]}  Bb6 {[%clk 0:02:49]} 8. Bb2 {[%clk 0:02:41]}  Ng6 {[%clk 0:02:45]} 9. Nf3 {[%clk 0:02:32]}  Nc6 {[%clk 0:02:39]} 10. Nbd2 {[%clk 0:02:21]}  Bc7 {[%clk 0:02:22]} 11. Bd3 {[%clk 0:02:08]}  O-O {[%clk 0:02:20]} 12. Qh5 {[%clk 0:01:41]}  Qe8 {[%clk 0:02:05]} 13. O-O {[%clk 0:01:18]}  h6 {[%clk 0:02:00]} 14. g3 {[%clk 0:01:05]}  a5 {[%clk 0:01:45]} 15. b5 {[%clk 0:01:03]}  Nce7 {[%clk 0:01:45]} 16. c4 {[%clk 0:01:03]}  Bb6 {[%clk 0:01:40]} 17. Rac1 {[%clk 0:00:47]}  a4 {[%clk 0:01:34]} 18. c5 {[%clk 0:00:43]}  Ba5 {[%clk 0:01:34]} 19. Rfd1 {[%clk 0:00:35]}  Nf5 {[%clk 0:01:30]} 20. g4 {[%clk 0:00:23]}  Nfe7 {[%clk 0:01:26]} 21. g5 {[%clk 0:00:23]}  Nf4 {[%clk 0:01:21]} 22. Qg4 {[%clk 0:00:20]}  Nxd3 {[%clk 0:01:21]} 23. gxh6 {[%clk 0:00:20]}  Nf5 {[%clk 0:01:20]} 24. hxg7 {[%clk 0:00:18]}  Nxg7 {[%clk 0:01:16]} 25. Bc3 {[%clk 0:00:16]}  Bd8 {[%clk 0:01:08]} 26. Rb1 {[%clk 0:00:14]}  f5 {[%clk 0:01:06]} 27. exf6 {[%clk 0:00:14]}  Bxf6 {[%clk 0:01:07]} 28. Bxf6 {[%clk 0:00:13]}  Rxf6 {[%clk 0:01:07]} 29. Qg3 {[%clk 0:00:11]}  Rg6 {[%clk 0:01:05]} 30. Ng5 {[%clk 0:00:11]}  Nxc5 {[%clk 0:01:00]} 31. h4 {[%clk 0:00:10]}  e5 {[%clk 0:00:57]} 32. Ndf3 {[%clk 0:00:09]}  Ne4 {[%clk 0:00:55]} 33. Qg2 {[%clk 0:00:09]}  Nc3 {[%clk 0:00:48]} 34. h5 {[%clk 0:00:07]}  Nxh5 {[%clk 0:00:48]} 0-1


[Site "https://www.chess.com"]

[Event "Titled Tuesday Blitz March 15 Early 2022"]
[White "Postny, Evgeny"]
[Black "Shailendra, K Bajpai"]
[WhiteFideId "2804344"]
[BlackFideId "5014670"]
[WhiteElo "2483"]
[BlackElo "2242"]
[Result "1-0"]
[Round "01"]
[TimeControl "180+1"]
[Date "2022.03.15"]
[WhiteClock "0:00:10"]
[BlackClock "0:00:31"]

1. c4 {[%clk 0:03:00]}  c5 {[%clk 0:02:55]} 2. Nf3 {[%clk 0:03:00]}  Nf6 {[%clk 0:02:53]} 3. g3 {[%clk 0:03:00]}  e6 {[%clk 0:02:52]} 4. Bg2 {[%clk 0:03:00]}  Be7 {[%clk 0:02:53]} 5. O-O {[%clk 0:03:00]}  O-O {[%clk 0:02:53]} 6. d4 {[%clk 0:03:00]}  cxd4 {[%clk 0:02:53]} 7. Nxd4 {[%clk 0:03:01]}  d5 {[%clk 0:02:53]} 8. cxd5 {[%clk 0:03:00]}  Nxd5 {[%clk 0:02:53]} 9. Nc3 {[%clk 0:02:58]}  Nc6 {[%clk 0:02:52]} 10. Nxd5 {[%clk 0:02:56]}  exd5 {[%clk 0:02:49]} 11. Be3 {[%clk 0:02:54]}  Bf6 {[%clk 0:02:46]} 12. Rc1 {[%clk 0:02:51]}  Nxd4 {[%clk 0:02:25]} 13. Bxd4 {[%clk 0:02:51]}  Be6 {[%clk 0:02:25]} 14. Qd2 {[%clk 0:02:40]}  Bxd4 {[%clk 0:02:08]} 15. Qxd4 {[%clk 0:02:41]}  Qa5 {[%clk 0:02:08]} 16. a3 {[%clk 0:02:36]}  Rac8 {[%clk 0:02:06]} 17. e3 {[%clk 0:02:32]}  b6 {[%clk 0:01:56]} 18. h4 {[%clk 0:02:16]}  Qb5 {[%clk 0:01:52]} 19. Rfd1 {[%clk 0:02:06]}  Rc4 {[%clk 0:01:45]} 20. Bf1 {[%clk 0:01:50]}  Rxd4 {[%clk 0:01:39]} 21. Bxb5 {[%clk 0:01:51]}  Rxd1+ {[%clk 0:01:39]} 22. Rxd1 {[%clk 0:01:52]}  Rc8 {[%clk 0:01:39]} 23. Bd3 {[%clk 0:01:48]}  g6 {[%clk 0:01:34]} 24. Kg2 {[%clk 0:01:42]}  Kf8 {[%clk 0:01:31]} 25. Kf3 {[%clk 0:01:37]}  Ke7 {[%clk 0:01:24]} 26. Ke2 {[%clk 0:01:37]}  Kd6 {[%clk 0:01:12]} 27. Kd2 {[%clk 0:01:34]}  Bg4 {[%clk 0:01:08]} 28. Re1 {[%clk 0:01:30]}  Bf3 {[%clk 0:01:07]} 29. Ba6 {[%clk 0:01:24]}  Rc7 {[%clk 0:01:06]} 30. Bd3 {[%clk 0:01:10]}  f5 {[%clk 0:01:05]} 31. Be2 {[%clk 0:01:07]}  Be4 {[%clk 0:01:03]} 32. f3 {[%clk 0:00:58]}  Bc2 {[%clk 0:01:03]} 33. Rc1 {[%clk 0:00:54]}  Bb3 {[%clk 0:00:52]} 34. Rxc7 {[%clk 0:00:53]}  Kxc7 {[%clk 0:00:52]} 35. Kc3 {[%clk 0:00:54]}  Ba4 {[%clk 0:00:46]} 36. Kd4 {[%clk 0:00:50]}  Kd6 {[%clk 0:00:47]} 37. g4 {[%clk 0:00:30]}  fxg4 {[%clk 0:00:42]} 38. fxg4 {[%clk 0:00:31]}  h6 {[%clk 0:00:41]} 39. g5 {[%clk 0:00:29]}  hxg5 {[%clk 0:00:39]} 40. hxg5 {[%clk 0:00:30]}  Be8 {[%clk 0:00:33]} 41. Bg4 {[%clk 0:00:27]}  Bf7 {[%clk 0:00:33]} 42. b4 {[%clk 0:00:21]}  Bg8 {[%clk 0:00:33]} 43. Bd1 {[%clk 0:00:17]}  Bf7 {[%clk 0:00:33]} 44. Bb3 {[%clk 0:00:17]}  Be6 {[%clk 0:00:32]} 45. a4 {[%clk 0:00:13]}  a5 {[%clk 0:00:29]} 46. b5 {[%clk 0:00:11]}  Bf5 {[%clk 0:00:28]} 47. Bxd5 {[%clk 0:00:09]}  Bc2 {[%clk 0:00:28]} 48. Be4 {[%clk 0:00:07]}  Bxa4 {[%clk 0:00:28]} 49. Bxg6 {[%clk 0:00:05]}  Bb3 {[%clk 0:00:28]} 50. Bd3 {[%clk 0:00:04]}  a4 {[%clk 0:00:28]} 51. Kc3 {[%clk 0:00:03]}  Bg8 {[%clk 0:00:28]} 52. Kb4 {[%clk 0:00:03]}  Bb3 {[%clk 0:00:25]} 53. Bc4 {[%clk 0:00:02]}  Bc2 {[%clk 0:00:24]} 54. Bf7 {[%clk 0:00:02]}  Ke7 {[%clk 0:00:24]} 55. Bd5 {[%clk 0:00:01]}  Bf5 {[%clk 0:00:23]} 56. Bc4 {[%clk 0:00:01]}  Bg6 {[%clk 0:00:22]} 57. Kxa4 {[%clk 0:00:01]}  Bc2+ {[%clk 0:00:22]} 58. Kb4 {[%clk 0:00:02]}  Be4 {[%clk 0:00:22]} 59. Kc3 {[%clk 0:00:03]}  Bf5 {[%clk 0:00:23]} 60. Kd4 {[%clk 0:00:03]}  Bd7 {[%clk 0:00:24]} 61. Bd3 {[%clk 0:00:04]}  Bxb5 {[%clk 0:00:25]} 62. Bxb5 {[%clk 0:00:03]}  Kd6 {[%clk 0:00:25]} 63. Bd3 {[%clk 0:00:04]}  Ke7 {[%clk 0:00:25]} 64. e4 {[%clk 0:00:05]}  Kf7 {[%clk 0:00:26]} 65. Bb5 {[%clk 0:00:06]}  Ke7 {[%clk 0:00:26]} 66. e5 {[%clk 0:00:06]}  Ke6 {[%clk 0:00:27]} 67. Ke4 {[%clk 0:00:07]}  Ke7 {[%clk 0:00:26]} 68. Kf5 {[%clk 0:00:07]}  Kf7 {[%clk 0:00:27]} 69. g6+ {[%clk 0:00:08]}  Kg7 {[%clk 0:00:28]} 70. Kg5 {[%clk 0:00:08]}  Kf8 {[%clk 0:00:29]} 71. Kf6 {[%clk 0:00:09]}  Kg8 {[%clk 0:00:30]} 72. Bc4+ {[%clk 0:00:08]}  Kh8 {[%clk 0:00:30]} 73. g7+ {[%clk 0:00:09]}  Kh7 {[%clk 0:00:30]} 74. g8=Q+ {[%clk 0:00:10]}  Kh6 {[%clk 0:00:31]} 75. Qh8# {[%clk 0:00:10]} 1-0


[Site "https://www.chess.com"]

[Event "Titled Tuesday Blitz March 15 Early 2022"]
[White "Priasmoro, Novendra"]
[Black "Spitzl, Vinzent"]
[WhiteFideId "7105029"]
[BlackFideId "12901253"]
[WhiteElo "2309"]
[BlackElo "2160"]
[Result "0-1"]
[Round "01"]
[TimeControl "180+1"]
[Date "2022.03.15"]
[WhiteClock "0:00:56"]
[BlackClock "0:00:03"]

1. Nf3 {[%clk 0:02:58]}  Nf6 {[%clk 0:02:55]} 2. g3 {[%clk 0:02:53]}  e6 {[%clk 0:02:54]} 3. Bg2 {[%clk 0:02:54]}  d5 {[%clk 0:02:54]} 4. d4 {[%clk 0:02:54]}  Be7 {[%clk 0:02:53]} 5. O-O {[%clk 0:02:53]}  O-O {[%clk 0:02:53]} 6. c4 {[%clk 0:02:54]}  dxc4 {[%clk 0:02:53]} 7. Qc2 {[%clk 0:02:54]}  a6 {[%clk 0:02:53]} 8. a4 {[%clk 0:02:55]}  Bd7 {[%clk 0:02:52]} 9. Qxc4 {[%clk 0:02:52]}  Bc6 {[%clk 0:02:43]} 10. a5 {[%clk 0:02:51]}  Bd5 {[%clk 0:02:23]} 11. Qc2 {[%clk 0:02:36]}  Be4 {[%clk 0:02:20]} 12. Qd1 {[%clk 0:02:36]}  c5 {[%clk 0:02:16]} 13. Nbd2 {[%clk 0:02:28]}  Bc6 {[%clk 0:02:13]} 14. dxc5 {[%clk 0:02:27]}  Bxc5 {[%clk 0:02:11]} 15. Qc2 {[%clk 0:02:28]}  Nbd7 {[%clk 0:02:06]} 16. Nc4 {[%clk 0:02:28]}  Qe7 {[%clk 0:02:02]} 17. Bf4 {[%clk 0:02:28]}  Nd5 {[%clk 0:01:54]} 18. Ng5 {[%clk 0:02:24]}  g6 {[%clk 0:01:51]} 19. Ne4 {[%clk 0:02:19]}  Nxf4 {[%clk 0:01:36]} 20. gxf4 {[%clk 0:02:20]}  Ba7 {[%clk 0:01:33]} 21. Rad1 {[%clk 0:02:18]}  Nc5 {[%clk 0:01:21]} 22. Ne5 {[%clk 0:02:08]}  Bxe4 {[%clk 0:01:06]} 23. Bxe4 {[%clk 0:02:09]}  Nxe4 {[%clk 0:01:07]} 24. Qxe4 {[%clk 0:02:09]}  Rfd8 {[%clk 0:01:06]} 25. e3 {[%clk 0:02:07]}  Bc5 {[%clk 0:01:00]} 26. Kh1 {[%clk 0:01:59]}  Bb4 {[%clk 0:00:55]} 27. Nc4 {[%clk 0:01:59]}  Rxd1 {[%clk 0:00:39]} 28. Rxd1 {[%clk 0:02:00]}  Rd8 {[%clk 0:00:39]} 29. Rg1 {[%clk 0:01:49]}  Qd7 {[%clk 0:00:26]} 30. Kg2 {[%clk 0:01:49]}  Qd5 {[%clk 0:00:25]} 31. Kf3 {[%clk 0:01:45]}  f5 {[%clk 0:00:17]} 32. Qxd5 {[%clk 0:01:44]}  exd5 {[%clk 0:00:17]} 33. Rd1 {[%clk 0:01:41]}  Kf7 {[%clk 0:00:13]} 34. Ke2 {[%clk 0:01:31]}  Ke6 {[%clk 0:00:13]} 35. Kf3 {[%clk 0:01:13]}  Rc8 {[%clk 0:00:13]} 36. Nb6 {[%clk 0:01:13]}  Rc5 {[%clk 0:00:13]} 37. h4 {[%clk 0:01:11]}  Bxa5 {[%clk 0:00:11]} 38. Na4 {[%clk 0:01:11]}  Rc6 {[%clk 0:00:10]} 39. b3 {[%clk 0:01:07]}  Bc7 {[%clk 0:00:09]} 40. Nb2 {[%clk 0:01:07]}  b5 {[%clk 0:00:09]} 41. Nd3 {[%clk 0:01:07]}  Bd6 {[%clk 0:00:09]} 42. b4 {[%clk 0:01:07]}  Rc3 {[%clk 0:00:08]} 43. Ke2 {[%clk 0:01:05]}  Rc2+ {[%clk 0:00:08]} 44. Kf3 {[%clk 0:01:05]}  Rc3 {[%clk 0:00:08]} 45. Rd2 {[%clk 0:01:03]}  Ke7 {[%clk 0:00:06]} 46. Ke2 {[%clk 0:01:03]}  Ke6 {[%clk 0:00:06]} 47. Ra2 {[%clk 0:01:03]}  Rc6 {[%clk 0:00:06]} 48. Rb2 {[%clk 0:01:00]}  h5 {[%clk 0:00:06]} 49. Ne1 {[%clk 0:01:00]}  Be7 {[%clk 0:00:07]} 50. Nf3 {[%clk 0:01:01]}  Bf6 {[%clk 0:00:06]} 51. Ra2 {[%clk 0:01:01]}  Kd6 {[%clk 0:00:05]} 52. Kd3 {[%clk 0:00:58]}  Kc7 {[%clk 0:00:05]} 53. Ne5 {[%clk 0:00:54]}  Bxe5 {[%clk 0:00:04]} 54. fxe5 {[%clk 0:00:55]}  Kd7 {[%clk 0:00:05]} 55. f4 {[%clk 0:00:56]}  Ke6 {[%clk 0:00:05]} 56. Rc2 {[%clk 0:00:52]}  Rxc2 {[%clk 0:00:04]} 57. Kxc2 {[%clk 0:00:53]}  Kd7 {[%clk 0:00:05]} 58. Kc3 {[%clk 0:00:53]}  Ke7 {[%clk 0:00:03]} 59. Kd3 {[%clk 0:00:54]}  Kd7 {[%clk 0:00:03]} 60. Kd4 {[%clk 0:00:54]}  Kc6 {[%clk 0:00:04]} 61. e6 {[%clk 0:00:55]}  Kd6 {[%clk 0:00:04]} 62. e7 {[%clk 0:00:56]}  Kxe7 {[%clk 0:00:04]} 63. Kxd5 {[%clk 0:00:56]}  Kd7 {[%clk 0:00:05]} 64. Ke5 {[%clk 0:00:57]}  Kc6 {[%clk 0:00:04]} 65. Kf6 {[%clk 0:00:56]}  a5 {[%clk 0:00:04]} 66. bxa5 {[%clk 0:00:56]}  b4 {[%clk 0:00:04]} 67. Kxg6 {[%clk 0:00:56]}  b3 {[%clk 0:00:05]} 68. Kxf5 {[%clk 0:00:54]}  b2 {[%clk 0:00:05]} 69. Kg5 {[%clk 0:00:55]}  b1=Q {[%clk 0:00:06]} 70. f5 {[%clk 0:00:55]}  Qe4 {[%clk 0:00:05]} 71. f6 {[%clk 0:00:55]}  Qxe3+ {[%clk 0:00:05]} 72. Kxh5 {[%clk 0:00:56]}  Qf3+ {[%clk 0:00:05]} 73. Kg6 {[%clk 0:00:56]}  Qg4+ {[%clk 0:00:05]} 74. Kf7 {[%clk 0:00:55]}  Qxh4 {[%clk 0:00:05]} 75. Ke7 {[%clk 0:00:56]}  Qb4+ {[%clk 0:00:04]} 76. Ke8 {[%clk 0:00:55]}  Kd6 {[%clk 0:00:04]} 77. f7 {[%clk 0:00:56]}  Qb8# {[%clk 0:00:03]} 0-1


[Site "https://www.chess.com"]

[Event "Titled Tuesday Blitz March 15 Early 2022"]
[White "Samunenkov, Ihor"]
[Black "Rengifo Blancas, Renzo Jhonathan"]
[WhiteFideId "14187086"]
[BlackFideId "3807185"]
[WhiteElo "2409"]
[BlackElo "2058"]
[Result "1-0"]
[Round "01"]
[TimeControl "180+1"]
[Date "2022.03.15"]
[WhiteClock "0:00:19"]
[BlackClock "0:00:06"]

1. d4 {[%clk 0:03:00]}  d5 {[%clk 0:02:56]} 2. c4 {[%clk 0:03:01]}  c6 {[%clk 0:02:56]} 3. Nf3 {[%clk 0:02:56]}  Nf6 {[%clk 0:02:56]} 4. g3 {[%clk 0:02:57]}  Bf5 {[%clk 0:02:35]} 5. Nc3 {[%clk 0:02:57]}  e6 {[%clk 0:02:27]} 6. Nh4 {[%clk 0:02:57]}  Bg4 {[%clk 0:02:26]} 7. f3 {[%clk 0:02:56]}  Bh5 {[%clk 0:02:26]} 8. Qb3 {[%clk 0:02:56]}  Qb6 {[%clk 0:02:25]} 9. Qxb6 {[%clk 0:02:41]}  axb6 {[%clk 0:02:24]} 10. g4 {[%clk 0:02:41]}  Bg6 {[%clk 0:02:23]} 11. g5 {[%clk 0:02:42]}  Nfd7 {[%clk 0:02:17]} 12. cxd5 {[%clk 0:02:42]}  exd5 {[%clk 0:02:16]} 13. e4 {[%clk 0:02:41]}  Na6 {[%clk 0:02:04]} 14. Bxa6 {[%clk 0:02:28]}  Rxa6 {[%clk 0:01:53]} 15. exd5 {[%clk 0:02:21]}  Bb4 {[%clk 0:01:52]} 16. dxc6 {[%clk 0:02:15]}  bxc6 {[%clk 0:01:53]} 17. Kf2 {[%clk 0:02:10]}  O-O {[%clk 0:01:52]} 18. Nxg6 {[%clk 0:02:08]}  fxg6 {[%clk 0:01:46]} 19. a3 {[%clk 0:01:58]}  Bxc3 {[%clk 0:01:26]} 20. bxc3 {[%clk 0:01:58]}  b5 {[%clk 0:01:26]} 21. Re1 {[%clk 0:01:40]}  Nb6 {[%clk 0:01:25]} 22. Re6 {[%clk 0:01:05]}  Nc4 {[%clk 0:01:21]} 23. Ra2 {[%clk 0:01:01]}  Kf7 {[%clk 0:01:03]} 24. Rae2 {[%clk 0:00:55]}  Rc8 {[%clk 0:00:30]} 25. Re7+ {[%clk 0:00:42]}  Kf8 {[%clk 0:00:30]} 26. Rb7 {[%clk 0:00:36]}  Re8 {[%clk 0:00:25]} 27. Rxe8+ {[%clk 0:00:33]}  Kxe8 {[%clk 0:00:25]} 28. Rxg7 {[%clk 0:00:34]}  Nxa3 {[%clk 0:00:25]} 29. Rxh7 {[%clk 0:00:27]}  Nb1 {[%clk 0:00:25]} 30. h4 {[%clk 0:00:21]}  Nxc3 {[%clk 0:00:24]} 31. h5 {[%clk 0:00:20]}  gxh5 {[%clk 0:00:23]} 32. g6 {[%clk 0:00:20]}  Nd5 {[%clk 0:00:20]} 33. Rh8+ {[%clk 0:00:18]}  Ke7 {[%clk 0:00:19]} 34. g7 {[%clk 0:00:19]}  Nf6 {[%clk 0:00:19]} 35. Bg5 {[%clk 0:00:19]}  Ra2+ {[%clk 0:00:17]} 36. Kg3 {[%clk 0:00:19]}  h4+ {[%clk 0:00:17]} 37. Bxh4 {[%clk 0:00:19]}  Kf7 {[%clk 0:00:09]} 38. Bxf6 {[%clk 0:00:19]}  Kxf6 {[%clk 0:00:09]} 39. g8=Q {[%clk 0:00:18]}  Kf5 {[%clk 0:00:08]} 40. Qxa2 {[%clk 0:00:18]}  c5 {[%clk 0:00:07]} 41. Qf7+ {[%clk 0:00:18]}  Kg5 {[%clk 0:00:06]} 42. Rh5# {[%clk 0:00:19]} 1-0


[Site "https://www.chess.com"]

[Event "Titled Tuesday Blitz March 15 Early 2022"]
[White "Santos Ruiz, Miguel"]
[Black "Hoffmann, Asa"]
[WhiteFideId "22291482"]
[BlackFideId "2001470"]
[WhiteElo "2486"]
[BlackElo "2117"]
[Result "1-0"]
[Round "01"]
[TimeControl "180+1"]
[Date "2022.03.15"]
[WhiteClock "0:01:04"]
[BlackClock "0:00:27"]

1. e4 {[%clk 0:03:00]}  d6 {[%clk 0:02:57]} 2. d4 {[%clk 0:03:00]}  Nf6 {[%clk 0:02:53]} 3. Nc3 {[%clk 0:03:00]}  c6 {[%clk 0:02:53]} 4. f4 {[%clk 0:02:58]}  Qa5 {[%clk 0:02:52]} 5. Bd3 {[%clk 0:02:56]}  e5 {[%clk 0:02:51]} 6. Nf3 {[%clk 0:02:55]}  exd4 {[%clk 0:02:50]} 7. Nxd4 {[%clk 0:02:55]}  Qb6 {[%clk 0:02:49]} 8. Nb3 {[%clk 0:02:44]}  a5 {[%clk 0:02:47]} 9. Qe2 {[%clk 0:02:28]}  a4 {[%clk 0:02:46]} 10. Be3 {[%clk 0:02:25]}  Qb4 {[%clk 0:02:45]} 11. a3 {[%clk 0:02:18]}  axb3 {[%clk 0:02:44]} 12. axb4 {[%clk 0:02:15]}  Rxa1+ {[%clk 0:02:43]} 13. Kd2 {[%clk 0:02:13]}  Rxh1 {[%clk 0:02:42]} 14. e5 {[%clk 0:02:13]}  dxe5 {[%clk 0:02:24]} 15. fxe5 {[%clk 0:02:13]}  Ng4 {[%clk 0:02:24]} 16. Ba7 {[%clk 0:02:11]}  bxc2 {[%clk 0:02:07]} 17. Bxc2 {[%clk 0:01:48]}  Na6 {[%clk 0:02:06]} 18. e6 {[%clk 0:01:48]}  Bxe6 {[%clk 0:01:27]} 19. Bf5 {[%clk 0:01:46]}  Nf6 {[%clk 0:00:58]} 20. Bxe6 {[%clk 0:01:44]}  fxe6 {[%clk 0:00:57]} 21. Qxe6+ {[%clk 0:01:45]}  Be7 {[%clk 0:00:57]} 22. Qc8+ {[%clk 0:01:31]}  Bd8 {[%clk 0:00:52]} 23. Qxb7 {[%clk 0:01:23]}  O-O {[%clk 0:00:43]} 24. Qxa6 {[%clk 0:01:22]}  Rxh2 {[%clk 0:00:43]} 25. Qxc6 {[%clk 0:01:21]}  Be7 {[%clk 0:00:39]} 26. b5 {[%clk 0:01:17]}  Rd8+ {[%clk 0:00:37]} 27. Kc2 {[%clk 0:01:16]}  h5 {[%clk 0:00:30]} 28. b6 {[%clk 0:01:06]}  h4 {[%clk 0:00:29]} 29. b7 {[%clk 0:01:06]}  Bd6 {[%clk 0:00:27]} 30. Qxd6 {[%clk 0:01:04]} 1-0


[Site "https://www.chess.com"]

[Event "Titled Tuesday Blitz March 15 Early 2022"]
[White "Shimanov, Aleksandr"]
[Black "Martic, Ivan"]
[WhiteFideId "4198603"]
[BlackFideId "929301"]
[WhiteElo "2636"]
[BlackElo "2317"]
[Result "0-1"]
[Round "01"]
[TimeControl "180+1"]
[Date "2022.03.15"]
[WhiteClock "0:01:16"]
[BlackClock "0:00:49"]

1. d4 {[%clk 0:02:58]}  Nf6 {[%clk 0:02:59]} 2. Nf3 {[%clk 0:02:50]}  g6 {[%clk 0:02:58]} 3. g3 {[%clk 0:02:48]}  Bg7 {[%clk 0:02:59]} 4. Bg2 {[%clk 0:02:48]}  O-O {[%clk 0:02:57]} 5. O-O {[%clk 0:02:48]}  d6 {[%clk 0:02:57]} 6. b3 {[%clk 0:02:48]}  c5 {[%clk 0:02:49]} 7. Bb2 {[%clk 0:02:48]}  Nc6 {[%clk 0:02:27]} 8. d5 {[%clk 0:02:43]}  Na5 {[%clk 0:02:24]} 9. Re1 {[%clk 0:02:33]}  b5 {[%clk 0:02:21]} 10. e4 {[%clk 0:02:33]}  Bg4 {[%clk 0:02:17]} 11. Nbd2 {[%clk 0:02:32]}  a6 {[%clk 0:02:06]} 12. h3 {[%clk 0:02:29]}  Bxf3 {[%clk 0:02:03]} 13. Nxf3 {[%clk 0:02:30]}  Nd7 {[%clk 0:01:56]} 14. Bxg7 {[%clk 0:02:26]}  Kxg7 {[%clk 0:01:56]} 15. Qd2 {[%clk 0:02:26]}  f6 {[%clk 0:01:53]} 16. h4 {[%clk 0:02:22]}  Nb7 {[%clk 0:01:33]} 17. Bh3 {[%clk 0:02:19]}  Ne5 {[%clk 0:01:31]} 18. Nh2 {[%clk 0:02:14]}  a5 {[%clk 0:01:21]} 19. f4 {[%clk 0:02:12]}  Nf7 {[%clk 0:01:20]} 20. Nf3 {[%clk 0:02:11]}  Qb6 {[%clk 0:01:17]} 21. Kg2 {[%clk 0:02:11]}  a4 {[%clk 0:01:17]} 22. h5 {[%clk 0:02:00]}  axb3 {[%clk 0:01:09]} 23. axb3 {[%clk 0:02:00]}  Ra6 {[%clk 0:01:08]} 24. hxg6 {[%clk 0:01:48]}  hxg6 {[%clk 0:01:07]} 25. Nh4 {[%clk 0:01:43]}  Rfa8 {[%clk 0:00:59]} 26. Rxa6 {[%clk 0:01:43]}  Rxa6 {[%clk 0:00:55]} 27. Qe2 {[%clk 0:01:38]}  Qa5 {[%clk 0:00:55]} 28. Rf1 {[%clk 0:01:23]}  Qc3 {[%clk 0:00:53]} 29. Rf2 {[%clk 0:01:23]}  Ra2 {[%clk 0:00:51]} 30. Qg4 {[%clk 0:01:22]}  Nh8 {[%clk 0:00:49]} 31. Qg5 {[%clk 0:01:16]}  fxg5 {[%clk 0:00:49]} 0-1


[Site "https://www.chess.com"]